[Event "98th Caplin Hastings Masters 2024-25"]
[Site "Hastings"]
[Date "2025.01.02"]
[Round "8.1"]
[White "Xue, Haowen"]
[Black "Laurent-Paoli, Pierre"]
[Result "1-0"]
[ECO "D52"]
[WhiteElo "2502"]
[BlackElo "2559"]
[Annotator "TA"]
[PlyCount "89"]
[EventDate "2024.12.23"]
[EventType "swiss"]
[EventCountry "ENG"]
[SourceTitle "playchess.com"]
[Source "ChessBase"]
[SourceQuality "1"]
[TimeControl "5400+30"]

{[%evp 13,88,22,39,36,41,31,47,40,37,16,15,27,9,10,27,0,0,0,25,9,19,8,31,6,30,25,45,43,44,28,37,25,79,72,73,85,64,72,70,81,93,23,48,77,74,68,163,158,153,135,138,161,150,160,412,341,326,162,472,457,652,606,29977,29978,29978,29977,29993,29994,29994,29995,29995,29996,29996,29997,29998,29999,29999]} 1. d4 {[%emt 0:00:03]} Nf6 {[%emt 0:06:47]} 2. c4 {[%emt 0:00:07]} e6 {[%emt 0:00:20]} 3. Nf3 {[%emt 0:00:11]} d5 {[%emt 0:00:14]} 4. Nc3 {[%emt 0:00:12]} c6 {[%emt 0:01:35]} 5. Bg5 {[%emt 0:00:20]} Nbd7 {[%emt 0:04:33]} 6. e3 {[%emt 0:00:21]} Qa5 {[%emt 0:00:04]} 7. cxd5 {[%emt 0:01:06]} Nxd5 {[%emt 0:00:06]} 8. Rc1 {[%emt 0:00:13]} Nxc3 {[%emt 0:06:45]} 9. bxc3 {[%emt 0:00:11]} Ba3 {[%emt 0:00:07]} 10. Rc2 {[%emt 0:00:07]} b6 {[%emt 0:00:22]} 11. Be2 {[%emt 0:00:48]} Ba6 {[%emt 0:02:56]} 12. O-O {[%emt 0:00:26]} Bxe2 {[%emt 0:00:39]} 13. Rxe2 {[%emt 0:00:20]} O-O {[%emt 0:03:49]} 14. Qc2 {[%emt 0:00:48]} Rfe8 {[%emt 0:11:42]} 15. c4 {[%emt 0:15:38]} Bf8 {[%emt 0:13:43]} 16. Rd1 {[%emt 0:07:08]} Rac8 {[%emt 0:44:48]} 17. h3 {[%emt 1:11:01]} h6 {[%emt 0:00:30]} 18. Bh4 {[%emt 0:00:30]} Be7 {[%emt 0:00:30]} 19. Bg3 {[%emt 0:00:30]} Bf6 {[%emt 0:00:30]} 20. Red2 {[%emt 0:00:30]} Qb4 {[%emt 0:00:30]} 21. Rb1 {[%emt 0:00:30]} Qa5 {[%emt 0:00:30]} 22. Rdd1 {[%emt 0:00:30]} Qa3 {[%emt 0:00:30]} (22... e5 $11) 23. Nd2 {[%emt 0:00:30]} c5 {[%emt 0:00:30][%cal Bc6c5,Bc5d4][%mdl 32]} 24. Ne4 {[%emt 0:00:30]} cxd4 {[%emt 0:00:00]} 25. Nd6 {[%emt 0:00:00]} (25. Nxf6+ Nxf6 26. exd4 Qa6 $11) 25... e5 {[%emt 0:00:00][%cal Be6e5,Be5d4][%mdl 32]} 26. Nxe8 {[%emt 0:00:00]} Rxe8 {[%emt 0:00:00]} 27. Qf5 {[%emt 0:00:00]} ({White should play} 27. Qb3 $16 Qe7 28. exd4 exd4 29. Qb5) 27... Re6 {[%emt 0:00:00][%cal Og7g6]} 28. exd4 {[%emt 0:00:00][%cal Oc4c5]} exd4 {[%emt 0:00:00][%cal Od7c5]} 29. Qd5 $36 {[%emt 0:00:00][%mdl 2048] White is more active.} Qa4 {[%emt 0:00:00]} ({Better is} 29... Nf8 $14) 30. Re1 $18 {[%emt 0:00:00]} Nc5 {[%emt 0:00:00] [#]} 31. Bd6 $1 {[%emt 0:00:00]} Rxe1+ {[%emt 0:00:00]} 32. Rxe1 {[%emt 0:00:00]} Ne6 {[%emt 0:00:00]} 33. f4 {[%emt 0:00:39][%cal Bf2f4,Bf4f5][%mdl 32]} Qxa2 $2 {[%emt 0:01:35]} (33... d3 $16 {was worth a try.} 34. Qxd3 Qxa2) 34. f5 {[%emt 0:00:58]} Qd2 {[%emt 0:01:05]} 35. Bg3 {[%emt 0:00:54]} (35. Re4 $142 Ng5 36. Re8+ Kh7 37. Kh2) 35... Nf4 $2 {[%emt 0:02:09]} (35... Nd8 {is tougher.} 36. Re8+ Kh7) 36. Qf3 {[%emt 0:01:23] Re8+ is the strong threat.} ({Not} 36. Re8+ Kh7 37. Qf3 (37. Qxf7 $2 Qxg2#) 37... Nxh3+ 38. gxh3 Qc1+ 39. Be1 Be7 $18) 36... Bg5 {[%emt 0:01:03]} (36... Nxh3+ $142 37. gxh3 Kh7) 37. h4 {[%emt 0:00:49]} Nxg2 {[%emt 0:00:33]} 38. Re8+ {[%emt 0:00:42]} Kh7 {[%emt 0:00:01]} 39. hxg5 {[%emt 0:00:22]} Ne3 {[%emt 0:00:27] [#]} 40. g6+ $1 {[%emt 0:00:33]} fxg6 {[%emt 0:00:04]} 41. fxg6+ {[%emt 0:00:04]} Kxg6 {[%emt 0:00:04]} 42. Re6+ {[%emt 0:00:09]} Kh7 {[%emt 0:01:09]} 43. Qe4+ {[%emt 0:00:07]} Kg8 {[%emt 0:00:03]} 44. Re8+ {[%emt 0:00:04]} Kf7 {[%emt 0:00:03]} 45. Qe6# {[%emt 0:00:04]} 1-0

[Event "98th Caplin Hastings Masters 2024-25"]
[Site "Hastings"]
[Date "2025.01.02"]
[Round "8.2"]
[White "Balaji, Aaravamudhan"]
[Black "Zhang, Pengxiang"]
[Result "0-1"]
[ECO "E45"]
[WhiteElo "2364"]
[BlackElo "2567"]
[Annotator "TA"]
[PlyCount "50"]
[EventDate "2024.12.23"]
[EventType "swiss"]
[EventCountry "ENG"]
[SourceTitle "playchess.com"]
[Source "ChessBase"]
[SourceQuality "1"]
[TimeControl "5400+30"]

{[%evp 14,50,12,0,23,26,12,-36,-37,-45,-45,-64,-44,-61,-50,-69,-68,-80,-46,-106,-114,-176,-164,-162,-156,-187,-184,-161,-155,-569,-603,-596,-595,-656,-647,-852,-851,-816,-802]} 1. d4 {[%emt 0:00:06]} Nf6 {[%emt 0:00:19]} 2. c4 {[%emt 0:00:10]} e6 {[%emt 0:00:04]} 3. Nc3 {[%emt 0:00:07]} Bb4 {[%emt 0:00:08]} 4. e3 {[%emt 0:00:12]} b6 {[%emt 0:00:04]} 5. Nge2 {[%emt 0:00:12]} Ba6 {[%emt 0:00:10]} 6. Ng3 {[%emt 0:06:46]} Bxc3+ {[%emt 0:00:33]} 7. bxc3 {[%emt 0:00:10]} d5 {[%emt 0:00:03]} 8. Ba3 {[%emt 0:02:28]} Bxc4 {[%emt 0:00:53]} 9. Bxc4 {[%emt 0:07:09]} dxc4 {[%emt 0:00:41]} 10. Qf3 {[%emt 0:15:54]} (10. Qa4+ $11 {is superior.} c6 11. e4) 10... Qd5 $1 $15 {[%emt 0:11:25]} 11. e4 {[%emt 0:00:31]} Qa5 {[%emt 0:00:39]} 12. Bb2 {[%emt 0:11:59]} Nbd7 {[%emt 0:03:29]} 13. O-O {[%emt 0:51:16]} O-O {[%emt 0:03:28]} 14. Rfd1 {[%emt 0:00:00]} c5 {[%emt 0:01:42] Black is more active.} 15. a4 {[%emt 0:00:00]} Rac8 {[%emt 0:08:07] aiming for ...cxd4.} 16. e5 {[%emt 0:00:00]} (16. Rdc1 $15) 16... Nd5 $17 {[%emt 0:00:08]} 17. Ne4 {[%emt 0:00:00]} (17. Qe2 $17 {keeps fighting.}) 17... cxd4 $19 {[%emt 0:02:02]} 18. cxd4 {[%emt 0:02:30]} c3 $36 {[%emt 0:00:35][%mdl 2048] Keeping White busy.} 19. Ba3 {[%emt 0:00:00]} c2 $1 {[%emt 0:18:31]} 20. Rdc1 {[%emt 0:00:00] [#]} Qxa4 $1 {[%emt 0:00:24]} 21. Bc5 $2 {[%emt 0:00:00] [#]} (21. Bxf8 $2 Qxa1 (21... Qxd4 22. Bxg7 Kxg7 23. Qg3+ Kf8 24. Qa3+ Nb4 25. Nd6 $19) 22. Rxa1 c1=Q+ (22... c1=R+ $2 23. Qd1 $19) 23. Qd1 Qxd1+ 24. Rxd1 Kxf8 $19 (24... Rxf8 $2 25. Nd6 $19)) (21. Qg4 $17 g6 22. h3 (22. Bxf8 $2 Qxa1 23. Bh6 Qa3 $17)) 21... Qxa1 $3 {[%emt 0:05:05][%mdl 512]} 22. Rxa1 {[%emt 0:00:00]} bxc5 {[%emt 0:00:06]} 23. dxc5 {[%emt 0:01:39]} Nxc5 {[%emt 0:01:04] Excellent horsemanship.} ({Less strong is} 23... Nxe5 24. Qb3 $17) 24. Rc1 {[%emt 0:00:48]} Nxe4 {[%emt 0:02:05]} 25. Qxe4 {[%emt 0:00:02] [#]} Nc3 $1 {[%emt 0:00:35]} ({Inferior is} 25... f5 26. exf6 Rxf6 (26... Nxf6 27. Qe2 $16) 27. Rxc2 Rxc2 28. Qxc2 $16) 0-1

[Event "98th Caplin Hastings Masters 2024-25"]
[Site "Hastings"]
[Date "2025.01.02"]
[Round "8.3"]
[White "Stefansson, Vignir Vatnar"]
[Black "Gormally, Daniel W"]
[Result "0-1"]
[ECO "B22"]
[WhiteElo "2537"]
[BlackElo "2424"]
[Annotator "TA"]
[PlyCount "54"]
[EventDate "2024.12.23"]
[EventType "swiss"]
[EventCountry "ENG"]
[SourceTitle "playchess.com"]
[Source "ChessBase"]
[SourceQuality "1"]
[TimeControl "5400+30"]

{[%evp 18,54,0,0,42,36,40,19,27,24,30,14,26,0,2,0,-2,-41,-44,-61,-58,-119,-131,-333,-328,-815,-824,-887,-888,-900,-858,-29988,-29989,-29989,-29990,-29990,-29991,-29992,-29993]} 1. e4 {[%emt 0:03:35][%cal Be2e4,Be4e5][%mdl 32]} c5 {[%emt 0:03:43]} 2. c3 {[%emt 0:00:18]} Nf6 {[%emt 0:01:19]} 3. e5 {[%emt 0:00:06]} Nd5 {[%emt 0:00:25]} 4. Nf3 {[%emt 0:00:10]} d6 {[%emt 0:02:14]} 5. exd6 {[%emt 0:01:08]} e6 {[%emt 0:02:02]} 6. g3 {[%emt 0:01:39]} Bxd6 {[%emt 0:00:56]} 7. Bg2 {[%emt 0:00:18]} O-O {[%emt 0:01:18]} 8. d4 {[%emt 0:01:23]} Nc6 {[%emt 0:01:15]} 9. O-O {[%emt 0:05:34]} cxd4 {[%emt 0:09:21]} 10. Nxd4 {[%emt 0:00:10]} Nde7 {[%emt 0:01:09]} 11. Nxc6 {[%emt 0:12:54]} Nxc6 {[%emt 0:00:49]} 12. Nd2 {[%emt 0:00:52]} e5 {[%emt 0:03:48]} 13. Nc4 {[%emt 0:02:04]} Bc7 {[%emt 0:00:42]} 14. Ne3 {[%emt 0:03:21]} Be6 {[%emt 0:01:52]} 15. Qa4 {[%emt 0:03:10][%cal Of1d1]} Bb6 {[%emt 0:02:39]} 16. Nc4 {[%emt 0:06:16]} Qd3 {[%emt 0:05:06]} 17. Ne3 {[%emt 0:06:42]} Rad8 {[%emt 0:03:38]} 18. Bf3 {[%emt 0:14:31]} Qg6 {[%emt 0:03:39] Black is much more active. The white rooks are passive.} 19. Re1 {[%emt 0:02:44]} ({Better is} 19. Ng2 $15) 19... f5 $17 {[%emt 0:02:50] Strongly threatening ...e4.} 20. Bxc6 $2 {[%emt 0:01:18]} (20. Ng2 $17 {was forced.}) 20... bxc6 $19 {[%emt 0:01:28]} 21. Nc4 $2 {[%emt 0:02:01] [#]} (21. Qc2 Qh5 22. Qe2 Qxe2 23. Rxe2) 21... Bxf2+ $1 {[%emt 0:08:46][%mdl 512]} 22. Kxf2 {[%emt 0:00:10]} f4 {[%emt 0:00:04]} ({Less strong is} 22... Qg4 23. Rxe5 Bd5 (23... Qxc4 24. Qxc4 Bxc4 25. Bf4 $14) (23... Bxc4 $2 {is the wrong capture.} 24. h3 $18) 24. Ke1 $19 (24. Rxd5 $2 cxd5 25. Be3 dxc4 $19)) 23. gxf4 {[%emt 0:23:55]} Qh5 {[%emt 0:01:22]} 24. Rxe5 {[%emt 0:01:27]} Qxh2+ {[%emt 0:03:39]} 25. Kf3 {[%emt 0:00:10]} Qh3+ {[%emt 0:01:44]} 26. Kf2 {[%emt 0:00:10]} Qh4+ {[%emt 0:01:39]} 27. Kf3 {[%emt 0:01:12]} Bg4+ {[%emt 0:01:12]} 0-1

[Event "98th Caplin Hastings Masters 2024-25"]
[Site "Hastings"]
[Date "2025.01.02"]
[Round "8.4"]
[White "Waldhausen Gordon, Frederick"]
[Black "Royal, Shreyas"]
[Result "1/2-1/2"]
[ECO "D85"]
[WhiteElo "2355"]
[BlackElo "2522"]
[Annotator "TA"]
[PlyCount "140"]
[EventDate "2024.12.23"]
[EventType "swiss"]
[EventCountry "ENG"]
[SourceTitle "playchess.com"]
[Source "ChessBase"]
[SourceQuality "1"]
[TimeControl "5400+30"]

{[%evp 18,140,0,5,0,0,0,0,0,8,18,0,28,0,0,0,-1,0,-4,0,0,0,0,0,0,0,0,0,0,-4,0,-25,-22,-29,18,12,11,0,1,6,8,-4,-7,-5,-4,-4,-5,-16,-18,-20,-15,-11,-11,-23,-14,-16,-14,-14,-14,-16,-16,-16,-16,-16,-20,-35,-35,-35,-22,-35,-8,-17,-8,-8,-8,-8,0,-17,-17,-17,-17,-17,-8,-17,-17,-17,-17,-17,-17,-17,-17,-17,-17,-17,-17,-17,-8,-8,-8,-8,-8,-31,-31,-31,-31,-31,-16,-16,-16,-16,-16,-16,-16,-31,-31,-38,-16,-16,-16,-38,-16,-16,0,-38,0]} 1. d4 {[%emt 0:00:01]} Nf6 {[%emt 0:00:06]} 2. c4 {[%emt 0:00:03]} g6 {[%emt 0:00:07]} 3. Nc3 {[%emt 0:00:03]} d5 {[%emt 0:00:05]} 4. cxd5 {[%emt 0:00:04]} Nxd5 {[%emt 0:00:05]} 5. e4 {[%emt 0:00:02]} Nxc3 {[%emt 0:00:09]} 6. bxc3 {[%emt 0:00:03]} Bg7 {[%emt 0:00:07]} 7. Nf3 {[%emt 0:00:03]} c5 {[%emt 0:00:07]} 8. h3 {[%emt 0:00:06]} Nc6 {[%emt 0:01:44]} 9. Be3 {[%emt 0:00:10]} O-O {[%emt 0:01:39]} 10. Be2 {[%emt 0:00:13]} cxd4 {[%emt 0:03:59]} 11. cxd4 {[%emt 0:00:09]} Qa5+ {[%emt 0:00:04]} 12. Bd2 {[%emt 0:00:04]} Qa3 {[%emt 0:00:06] The position is equal.} 13. d5 {[%emt 0:00:46]} Ne5 {[%emt 0:00:39]} (13... Bxa1 14. Qxa1 Na5 15. Bh6 Qb4+ 16. Nd2 $18) 14. O-O {[%emt 0:01:24]} Bd7 {[%emt 0:12:16]} 15. Nd4 {[%emt 0:13:54]} Rfc8 {[%emt 0:05:15]} 16. Qb3 {[%emt 0:07:10] Repels Nc4} Qxb3 {[%emt 0:08:22]} 17. axb3 {[%emt 0:00:10]} Nd3 {[%emt 0:00:29]} 18. Bxd3 {[%emt 0:01:15]} Bxd4 {[%emt 0:00:06]} 19. Rac1 {[%emt 0:03:50]} e6 {[%emt 0:06:26]} 20. Bc4 {[%emt 0:03:44][%cal Bd3c4,Bc4e2,Be2g4][%mdl 32]} b5 {[%emt 0:00:19]} 21. dxe6 {[%emt 0:00:12]} fxe6 {[%emt 0:04:50]} 22. Be2 {[%emt 0:01:00]} e5 {[%emt 0:00:11]} 23. Rfd1 {[%emt 0:02:17]} Be6 {[%emt 0:01:20]} 24. b4 {[%emt 0:06:12]} Bb3 {[%emt 0:04:59]} 25. Re1 {[%emt 0:03:58]} Bc2 {[%emt 0:09:27]} (25... a6 {deserves consideration.}) 26. Bg4 $11 {[%emt 0:06:43] [#] Black must now prevent Be6+.} Rc7 {[%emt 0:00:50]} 27. Re2 {[%emt 0:04:45]} Bb2 {[%emt 0:04:52]} 28. Be6+ {[%emt 0:00:33]} Kg7 {[%emt 0:00:12]} 29. Rxc2 {[%emt 0:00:27]} Rxc2 {[%emt 0:00:05]} 30. Bh6+ $1 {[%emt 0:00:04]} Kxh6 {[%emt 0:00:04]} 31. Rxc2 {[%emt 0:00:06][%mdl 4096] Endgame. KRB-KRB} Ba3 {[%emt 0:01:40]} 32. Rc8 {[%emt 0:00:34] Inhibits Bxb4.} Rxc8 {[%emt 0:01:58]} 33. Bxc8 {[%emt 0:00:09]} Bxb4 {[%emt 0:00:01] KB-KB} 34. Ba6 {[%emt 0:00:06]} Kg5 {[%emt 0:00:19]} 35. Bxb5 {[%emt 0:00:06]} Kf6 {[%emt 0:00:10]} 36. Kf1 {[%emt 0:00:26]} Ke6 {[%emt 0:00:09]} 37. Ke2 {[%emt 0:00:31]} Kd6 {[%emt 0:00:09]} 38. Kd3 {[%emt 0:00:35]} Kc5 {[%emt 0:00:05]} 39. Be8 {[%emt 0:00:38]} Be1 {[%emt 0:00:18]} 40. Ke2 {[%emt 0:00:23]} Bc3 {[%emt 0:00:11]} 41. Kd3 {[%emt 0:00:04]} Bd4 {[%emt 0:01:42]} 42. f3 {[%emt 0:00:06]} Bg1 {[%emt 0:03:41]} 43. Bf7 {[%emt 0:00:34]} Kd6 {[%emt 0:00:13]} 44. Be8 {[%emt 0:00:50]} a5 {[%emt 0:01:09]} 45. Kc4 {[%emt 0:00:42]} Ke7 {[%emt 0:00:30]} 46. Bc6 {[%emt 0:00:10]} Kf6 {[%emt 0:00:23]} 47. Kd3 {[%emt 0:00:16]} Kg5 {[%emt 0:00:34]} 48. Be8 {[%emt 0:00:24]} Bd4 {[%emt 0:01:50]} 49. Ke2 {[%emt 0:00:19]} Bb6 {[%emt 0:00:22]} 50. Kd3 {[%emt 0:00:21]} Kf4 {[%emt 0:01:47] [#] And now ...Kg3 would win.} 51. Ke2 $1 {[%emt 0:00:11]} Ba7 {[%emt 0:00:04]} 52. Ba4 {[%emt 0:00:10]} g5 {[%emt 0:02:40]} 53. Be8 {[%emt 0:00:15]} Bb6 {[%emt 0:00:04]} 54. Ba4 {[%emt 0:00:05]} Kg3 {[%emt 0:00:08]} 55. Kf1 {[%emt 0:00:04]} h5 {[%emt 0:00:14]} 56. Be8 {[%emt 0:00:14]} g4 {[%emt 0:00:03]} 57. hxg4 {[%emt 0:00:32]} hxg4 {[%emt 0:00:08]} 58. Ke2 {[%emt 0:00:15]} Bd8 {[%emt 0:02:42]} 59. fxg4 {[%emt 0:00:19]} Kxg4 {[%emt 0:00:17]} 60. Kd3 {[%emt 0:00:07]} Kg3 {[%emt 0:00:31]} 61. Kc4 {[%emt 0:00:09]} Kxg2 {[%emt 0:00:04]} 62. Kb5 {[%emt 0:00:07]} Kf3 {[%emt 0:00:10]} 63. Bc6 {[%emt 0:00:04]} Ke3 {[%emt 0:00:02]} 64. Ka4 {[%emt 0:00:03]} Kd4 {[%emt 0:00:05]} 65. Bd5 {[%emt 0:00:04]} Kc5 {[%emt 0:00:04]} 66. Ba8 {[%emt 0:00:03]} Bb6 {[%emt 0:00:06]} 67. Bd5 {[%emt 0:00:05]} Bc7 {[%emt 0:00:04]} 68. Ba8 {[%emt 0:00:08]} Kc4 {[%emt 0:00:05]} 69. Bd5+ {[%emt 0:00:05]} Kc5 {[%emt 0:00:05]} 70. Ba8 {[%emt 0:00:05]} Kc4 {[%emt 0:31:43] Weighted Error Value: White=0.05 (flawless) /Black=0.03 (flawless) .  Mistake:       	---       	Black=1      Inaccurate:     	White=1     	Black=3      OK:         	White=26    	Black=28     Best:        	---       	Black=2      Strong:       	White=2     	---} 1/2-1/2

[Event "98th Caplin Hastings Masters 2024-25"]
[Site "Hastings"]
[Date "2025.01.02"]
[Round "8.5"]
[White "Seo, Jung Min"]
[Black "Grutter, Tim"]
[Result "1/2-1/2"]
[ECO "E71"]
[WhiteElo "2491"]
[BlackElo "2379"]
[Annotator "TA"]
[PlyCount "43"]
[EventDate "2024.12.23"]
[EventType "swiss"]
[EventCountry "ENG"]
[SourceTitle "playchess.com"]
[Source "ChessBase"]
[SourceQuality "1"]
[TimeControl "5400+30"]

{[%evp 9,43,28,45,48,42,46,45,34,38,0,0,0,20,0,-4,-25,16,0,0,-11,-20,-17,-4,-19,-15,-33,0,0,0,0,0,-8,7,0,0,0]} 1. d4 {[%emt 0:00:00]} Nf6 {[%emt 0:00:05]} 2. c4 {[%emt 0:00:01]} g6 {[%emt 0:00:08]} 3. Nc3 {[%emt 0:00:02]} Bg7 {[%emt 0:00:04]} 4. e4 {[%emt 0:00:01]} d6 {[%emt 0:00:05]} 5. h3 {[%emt 0:00:02]} Nc6 {[%emt 0:00:04]} 6. Nge2 {[%emt 0:04:06]} e5 {[%emt 0:01:03]} 7. d5 {[%emt 0:01:25]} Nd4 {[%emt 1:32:31]} 8. Be3 {[%emt 0:02:56] White is slightly better.} O-O $1 {[%emt 0:00:30]} 9. f3 {[%emt 1:26:27]} c5 {[%emt 0:00:00]} 10. dxc6 {[%emt 0:00:30]} Nxc6 {[%emt 0:01:00]} 11. g4 {[%emt 0:00:00]} Be6 {[%emt 0:00:30]} 12. b3 {[%emt 0:00:00]} Qa5 {[%emt 0:00:30][%cal Ob7b5]} 13. Bg2 {[%emt 0:01:30][%cal Oe1g1]} (13. Qxd6 $2 {too greedy.} Nb4 14. Qd1 Rfd8 $19) 13... a6 {[%emt 0:00:30]} 14. O-O {[%emt 0:00:30][%cal Oa1c1]} (14. Qxd6 Nd4 15. b4 Nc2+ 16. Kf2 Qd8 (16... Nxb4 17. Rhb1 $11) (16... Qa3 17. Bc1 $11) 17. Qxd8 Rfxd8 $15) 14... b5 {[%emt 0:00:30]} 15. Nd5 {[%emt 0:00:30]} bxc4 {[%emt 0:00:30][%cal Re6d5]} 16. bxc4 {[%emt 0:00:30]} Rab8 {[%emt 0:00:30]} 17. Kh1 {[%emt 0:00:30]} Qa3 {[%emt 0:00:00]} 18. Bc1 {[%emt 0:00:30] The position is equal.} Qa5 {[%emt 0:01:00]} 19. Bd2 {[%emt 0:00:30]} Qa3 {[%emt 0:00:30]} 20. Bc1 {[%emt 0:00:30]} Qa5 {[%emt 0:00:30]} 21. Bd2 {[%emt 0:00:00]} Qa3 {[%emt 0:00:00]} 22. Bc1 {[%emt 0:00:00] Weighted Error Value: White=0.08 (flawless) /Black=0.07 (flawless) .  Inaccurate:     	White=1     	Black=2      OK:         	White=7     	Black=6      Best:        	---       	Black=1      Strong:       	---       	Black=1} 1/2-1/2

[Event "98th Caplin Hastings Masters 2024-25"]
[Site "Hastings"]
[Date "2025.01.02"]
[Round "8.6"]
[White "Kaasen, Tor Fredrik"]
[Black "Lux, Hugo de Melo"]
[Result "1/2-1/2"]
[ECO "B51"]
[WhiteElo "2473"]
[BlackElo "2327"]
[Annotator "TA"]
[PlyCount "75"]
[EventDate "2024.12.23"]
[EventType "swiss"]
[EventCountry "ENG"]
[SourceTitle "playchess.com"]
[Source "ChessBase"]
[SourceQuality "1"]
[TimeControl "5400+30"]

{[%evp 10,75,25,16,33,37,34,32,46,25,42,42,45,46,42,56,45,34,72,0,0,-50,-37,-40,-57,-27,-42,-119,-101,-159,-118,-306,35,0,45,65,85,83,68,30,40,0,0,0,0,0,0,0,70,45,29,0,0,0,0,-416,0,0,0,0,0,0,0,0,0,0,0,0]} 1. e4 {[%emt 0:00:03]} c5 {[%emt 0:06:52]} 2. Nf3 {[%emt 0:00:08]} Nc6 {[%emt 0:00:03]} 3. Bb5 {[%emt 0:00:06]} d6 {[%emt 0:00:58]} 4. O-O {[%emt 0:01:32]} Bd7 {[%emt 0:00:10]} 5. Re1 {[%emt 0:01:14]} a6 {[%emt 0:00:17]} 6. Bf1 {[%emt 0:01:04]} e5 {[%emt 0:00:05]} 7. c3 {[%emt 0:03:25]} Be7 {[%emt 0:00:18]} 8. h3 {[%emt 0:03:59]} g5 {[%emt 0:00:06]} 9. d4 {[%emt 0:01:25]} h5 {[%emt 0:02:21][%cal Bh7h5,Bh5g4][%mdl 32]} 10. d5 {[%emt 0:06:02]} Na7 $1 {[%emt 0:01:23]} 11. Nh2 {[%emt 0:01:02]} g4 {[%emt 0:01:16]} 12. hxg4 {[%emt 0:08:11]} hxg4 {[%emt 0:00:02]} 13. g3 {[%emt 0:06:02]} (13. Nxg4 Bg5 14. Ne3 Bxe3 15. Rxe3 (15. Bxe3 Qh4 $15) 15... Qh4 $11) 13... Nf6 {[%emt 0:00:12]} 14. b4 {[%emt 0:02:11]} (14. a4 $16) 14... cxb4 $11 {[%emt 0:06:06]} 15. c4 {[%emt 0:03:27]} (15. cxb4 $11 Kf8 16. Nd2) 15... b5 {[%emt 0:09:38]} 16. a3 $1 {[%emt 0:09:13]} bxc4 {[%emt 0:05:41]} 17. axb4 {[%emt 0:01:38]} Nb5 {[%emt 0:00:31]} 18. Bxc4 {[%emt 0:01:51]} (18. Na3 $15) 18... Kf8 $17 {[%emt 0:08:52]} 19. Na3 {[%emt 0:27:07]} (19. Bxb5 $142 axb5 20. Rxa8 Qxa8 21. Qe2) 19... Rc8 {[%emt 0:08:46] and ...Nxa3 would now be decisive} 20. Bd3 $2 {[%emt 0:05:53]} (20. Bf1 $17) 20... Rc3 $2 {[%emt 0:30:37]} (20... Nc3 $19 21. Qd2 Rh5) 21. Bb2 {[%emt 0:02:47]} Rxd3 {[%emt 0:01:15]} 22. Qxd3 {[%emt 0:00:10]} Nxa3 {[%emt 0:01:06]} 23. Rxa3 {[%emt 0:01:27]} Bb5 {[%emt 0:00:06]} 24. Qe3 {[%emt 0:01:13]} Rh5 {[%emt 0:01:44]} 25. Kg2 {[%emt 0:01:10]} Kg7 {[%emt 0:00:43]} 26. Rh1 {[%emt 0:00:12]} Qh8 {[%emt 0:00:18]} 27. Raa1 {[%emt 0:01:31]} Qh7 {[%emt 0:00:20]} 28. Rae1 {[%emt 0:00:32]} Rh3 {[%emt 0:13:55]} (28... Qg6 $11) 29. Bc1 {[%emt 0:03:16]} Kf8 {[%emt 0:00:36]} 30. Bd2 {[%emt 0:01:20]} Bd8 {[%emt 0:00:12]} 31. Bc1 {[%emt 0:03:01]} Bc4 {[%emt 0:00:05]} 32. f3 $2 {[%emt 0:01:49][%mdl 8192] [#]} (32. Bd2 $11 {and White stays safe.}) 32... Rxg3+ $3 {[%emt 0:00:15][%mdl 512]} 33. Kxg3 $11 {[%emt 0:01:08]} Qh3+ $1 {[%emt 0:00:00]} 34. Kf2 {[%emt 0:00:01]} Qh4+ {[%emt 0:01:32]} 35. Kg2 {[%emt 0:00:12]} Qh3+ {[%emt 0:00:24]} 36. Kf2 {[%emt 0:00:06] Strongly threatening Qh6+.} Qh4+ {[%emt 0:01:04]} 37. Kg2 {[%emt 0:00:06]} Qh3+ {[%emt 0:00:02]} 38. Kf2 {[%emt 0:03:56]} 1/2-1/2